[Event "Titled Tuesday Blitz July 18 Late 2023"]
[White "Begmuratov, Alisher"]
[Black "Yoo, Christopher Woojin"]
[WhiteFideId "14203367"]
[BlackFideId "30909694"]
[WhiteElo "2657"]
[BlackElo "2983"]
[Result "0-1"]
[Round "5"]
[TimeControl "180+2"]
[Date "2023.07.18"]
[WhiteClock "0:00:08"]
[BlackClock "0:00:14"]
[Board "19"]

1. Nf3 {[%clk 0:03:00]}  b6 {[%clk 0:02:58]} 2. g3 {[%clk 0:03:00]}  Bb7 {[%clk 0:02:59]} 3. Bg2 {[%clk 0:03:00]}  c5 {[%clk 0:02:58]} 4. b3 {[%clk 0:03:00]}  Nf6 {[%clk 0:02:57]} 5. Bb2 {[%clk 0:03:00]}  e6 {[%clk 0:02:56]} 6. O-O {[%clk 0:03:00]}  Be7 {[%clk 0:02:56]} 7. d3 {[%clk 0:02:59]}  d5 {[%clk 0:02:55]} 8. e3 {[%clk 0:02:57]}  O-O {[%clk 0:02:54]} 9. Nbd2 {[%clk 0:02:57]}  Nbd7 {[%clk 0:02:54]} 10. Ne5 {[%clk 0:02:54]}  Nxe5 {[%clk 0:02:53]} 11. Bxe5 {[%clk 0:02:55]}  Nd7 {[%clk 0:02:54]} 12. Bb2 {[%clk 0:02:55]}  Bf6 {[%clk 0:02:54]} 13. Bxf6 {[%clk 0:02:46]}  Nxf6 {[%clk 0:02:55]} 14. Qe2 {[%clk 0:02:44]}  e5 {[%clk 0:02:54]} 15. e4 {[%clk 0:02:39]}  Re8 {[%clk 0:02:53]} 16. h3 {[%clk 0:02:35]}  Qc7 {[%clk 0:02:50]} 17. Kh2 {[%clk 0:02:32]}  Rad8 {[%clk 0:02:49]} 18. Rae1 {[%clk 0:02:26]}  b5 {[%clk 0:02:41]} 19. exd5 {[%clk 0:02:06]}  Nxd5 {[%clk 0:02:38]} 20. Qe4 {[%clk 0:01:29]}  Bc6 {[%clk 0:02:33]} 21. Qh4 {[%clk 0:01:24]}  f6 {[%clk 0:02:29]} 22. Ne4 {[%clk 0:01:22]}  Bb7 {[%clk 0:02:22]} 23. Re2 {[%clk 0:01:17]}  f5 {[%clk 0:02:17]} 24. Ng5 {[%clk 0:01:06]}  h6 {[%clk 0:02:16]} 25. Nf3 {[%clk 0:01:06]}  Nc3 {[%clk 0:02:16]} 26. Rxe5 {[%clk 0:00:47]}  Rxe5 {[%clk 0:02:06]} 27. Nxe5 {[%clk 0:00:48]}  Bxg2 {[%clk 0:02:06]} 28. Kxg2 {[%clk 0:00:48]}  Re8 {[%clk 0:02:00]} 29. f4 {[%clk 0:00:43]}  Nxa2 {[%clk 0:01:55]} 30. Qh5 {[%clk 0:00:41]}  Rf8 {[%clk 0:01:54]} 31. Re1 {[%clk 0:00:35]}  Qb7+ {[%clk 0:00:33]} 32. Kh2 {[%clk 0:00:34]}  Qe7 {[%clk 0:00:26]} 33. Re2 {[%clk 0:00:25]}  Nc3 {[%clk 0:00:25]} 34. Re1 {[%clk 0:00:19]}  a5 {[%clk 0:00:24]} 35. Qg6 {[%clk 0:00:17]}  Rf6 {[%clk 0:00:22]} 36. Qh5 {[%clk 0:00:16]}  a4 {[%clk 0:00:21]} 37. bxa4 {[%clk 0:00:16]}  bxa4 {[%clk 0:00:20]} 38. Qf3 {[%clk 0:00:16]}  Kh7 {[%clk 0:00:19]} 39. Qa8 {[%clk 0:00:16]}  Re6 {[%clk 0:00:16]} 40. Ra1 {[%clk 0:00:13]}  Rxe5 {[%clk 0:00:09]} 41. fxe5 {[%clk 0:00:14]}  Qxe5 {[%clk 0:00:10]} 42. Ra3 {[%clk 0:00:13]}  Qe3 {[%clk 0:00:07]} 43. Qg2 {[%clk 0:00:12]}  Qd4 {[%clk 0:00:05]} 44. Qf3 {[%clk 0:00:12]}  Qe5 {[%clk 0:00:03]} 45. Kg2 {[%clk 0:00:11]}  Nd5 {[%clk 0:00:03]} 46. Rxa4 {[%clk 0:00:09]}  Ne3+ {[%clk 0:00:03]} 47. Kh2 {[%clk 0:00:08]}  Nxc2 {[%clk 0:00:04]} 48. Ra7 {[%clk 0:00:08]}  Nd4 {[%clk 0:00:04]} 49. Qf2 {[%clk 0:00:08]}  Qd5 {[%clk 0:00:03]} 50. Qg2 {[%clk 0:00:07]}  Nf3+ {[%clk 0:00:03]} 51. Kh1 {[%clk 0:00:08]}  Qxd3 {[%clk 0:00:04]} 52. Ra1 {[%clk 0:00:08]}  c4 {[%clk 0:00:03]} 53. Qf2 {[%clk 0:00:07]}  c3 {[%clk 0:00:02]} 54. Rf1 {[%clk 0:00:07]}  c2 {[%clk 0:00:02]} 55. Kg2 {[%clk 0:00:07]}  Nd4 {[%clk 0:00:02]} 56. Rc1 {[%clk 0:00:07]}  Ne2 {[%clk 0:00:02]} 57. Qe1 {[%clk 0:00:05]}  Qe4+ {[%clk 0:00:02]} 58. Kf2 {[%clk 0:00:05]}  Nxc1 {[%clk 0:00:03]} 59. Qxc1 {[%clk 0:00:04]}  Qd3 {[%clk 0:00:04]} 60. Qf4 {[%clk 0:00:03]}  Qe4 {[%clk 0:00:04]} 61. Qd2 {[%clk 0:00:02]}  h5 {[%clk 0:00:03]} 62. Qc3 {[%clk 0:00:02]}  h4 {[%clk 0:00:03]} 63. gxh4 {[%clk 0:00:02]}  Qf4+ {[%clk 0:00:03]} 64. Ke2 {[%clk 0:00:03]}  c1=Q {[%clk 0:00:04]} 65. Qxc1 {[%clk 0:00:03]}  Qxc1 {[%clk 0:00:05]} 66. Kf3 {[%clk 0:00:03]}  Qh6 {[%clk 0:00:06]} 67. h5 {[%clk 0:00:04]}  Qxh5+ {[%clk 0:00:07]} 68. Kg2 {[%clk 0:00:03]}  Kh6 {[%clk 0:00:08]} 69. Kh2 {[%clk 0:00:04]}  Qg4 {[%clk 0:00:07]} 70. hxg4 {[%clk 0:00:03]}  fxg4 {[%clk 0:00:08]} 71. Kg3 {[%clk 0:00:04]}  Kg5 {[%clk 0:00:08]} 72. Kg2 {[%clk 0:00:05]}  Kf4 {[%clk 0:00:09]} 73. Kf2 {[%clk 0:00:05]}  g3+ {[%clk 0:00:10]} 74. Kg2 {[%clk 0:00:06]}  Kg4 {[%clk 0:00:11]} 75. Kg1 {[%clk 0:00:06]}  Kf3 {[%clk 0:00:11]} 76. Kf1 {[%clk 0:00:06]}  g2+ {[%clk 0:00:11]} 77. Kg1 {[%clk 0:00:07]}  g6 {[%clk 0:00:12]} 78. Kh2 {[%clk 0:00:07]}  Kf2 {[%clk 0:00:12]} 79. Kh3 {[%clk 0:00:08]}  g1=Q {[%clk 0:00:13]} 80. Kh4 {[%clk 0:00:08]}  Qg3# {[%clk 0:00:14]} 0-1


[Site "https://www.chess.com"]

[Event "Titled Tuesday Blitz July 18 Late 2023"]
[White "Karaoglan, Doruk"]
[Black "Antipov, Mikhail Al."]
[WhiteFideId "6390927"]
[BlackFideId "4107012"]
[WhiteElo "2616"]
[BlackElo "2915"]
[Result "0-1"]
[Round "5"]
[TimeControl "180+2"]
[Date "2023.07.18"]
[WhiteClock "0:00:24"]
[BlackClock "0:00:52"]
[Board "23"]

1. e4 {[%clk 0:03:00]}  c5 {[%clk 0:02:58]} 2. Nc3 {[%clk 0:03:01]}  Nc6 {[%clk 0:02:59]} 3. g3 {[%clk 0:03:01]}  g6 {[%clk 0:02:57]} 4. Bg2 {[%clk 0:03:02]}  Bg7 {[%clk 0:02:57]} 5. d3 {[%clk 0:03:02]}  e6 {[%clk 0:02:53]} 6. Be3 {[%clk 0:03:02]}  d6 {[%clk 0:02:51]} 7. f4 {[%clk 0:03:02]}  Nf6 {[%clk 0:02:48]} 8. Nf3 {[%clk 0:03:02]}  O-O {[%clk 0:02:43]} 9. h3 {[%clk 0:03:01]}  Rb8 {[%clk 0:02:43]} 10. O-O {[%clk 0:03:01]}  b5 {[%clk 0:02:43]} 11. e5 {[%clk 0:02:41]}  dxe5 {[%clk 0:02:30]} 12. Bxc5 {[%clk 0:02:41]}  exf4 {[%clk 0:02:29]} 13. Bxf8 {[%clk 0:02:41]}  Qxf8 {[%clk 0:02:28]} 14. gxf4 {[%clk 0:02:40]}  Nh5 {[%clk 0:02:29]} 15. f5 {[%clk 0:02:40]}  exf5 {[%clk 0:02:28]} 16. Ne2 {[%clk 0:02:26]}  Bb7 {[%clk 0:02:15]} 17. d4 {[%clk 0:02:24]}  Re8 {[%clk 0:02:09]} 18. c3 {[%clk 0:02:23]}  Ne7 {[%clk 0:02:06]} 19. Ne1 {[%clk 0:02:16]}  Nd5 {[%clk 0:02:05]} 20. Qd2 {[%clk 0:02:13]}  Bh6 {[%clk 0:02:05]} 21. Qd3 {[%clk 0:02:08]}  Qd6 {[%clk 0:01:58]} 22. Qxb5 {[%clk 0:02:04]}  Rxe2 {[%clk 0:01:54]} 23. Qxe2 {[%clk 0:01:35]}  Be3+ {[%clk 0:01:52]} 24. Rf2 {[%clk 0:01:34]}  Ng3 {[%clk 0:01:27]} 25. Qf3 {[%clk 0:01:30]}  f4 {[%clk 0:01:04]} 26. Nc2 {[%clk 0:01:26]}  Nxc3 {[%clk 0:01:02]} 27. Qxb7 {[%clk 0:01:22]}  Nce2+ {[%clk 0:01:01]} 28. Kh2 {[%clk 0:01:20]}  f3 {[%clk 0:00:54]} 29. Rxe2 {[%clk 0:00:24]}  Nf1+ {[%clk 0:00:52]} 0-1


[Site "https://www.chess.com"]

[Event "Titled Tuesday Blitz July 18 Late 2023"]
[White "Gadimbayli, Abdulla"]
[Black "Pinheiro, Iung Alicio de O."]
[WhiteFideId "13404938"]
[BlackFideId "2104350"]
[WhiteElo "2840"]
[BlackElo "2599"]
[Result "1-0"]
[Round "5"]
[TimeControl "180+2"]
[Date "2023.07.18"]
[WhiteClock "0:01:29"]
[BlackClock "0:00:05"]
[Board "28"]

1. e4 {[%clk 0:02:53]}  e5 {[%clk 0:02:58]} 2. Nf3 {[%clk 0:02:26]}  Nc6 {[%clk 0:02:58]} 3. Nc3 {[%clk 0:02:27]}  Nf6 {[%clk 0:02:52]} 4. d4 {[%clk 0:02:27]}  Bb4 {[%clk 0:02:50]} 5. Nxe5 {[%clk 0:02:27]}  Qe7 {[%clk 0:02:48]} 6. Qd3 {[%clk 0:02:27]}  Nxe5 {[%clk 0:02:23]} 7. dxe5 {[%clk 0:02:28]}  Qxe5 {[%clk 0:02:24]} 8. Bd2 {[%clk 0:02:22]}  O-O {[%clk 0:02:15]} 9. O-O-O {[%clk 0:02:20]}  Bxc3 {[%clk 0:01:51]} 10. Bxc3 {[%clk 0:02:21]}  Qf4+ {[%clk 0:01:44]} 11. Rd2 {[%clk 0:01:41]}  Nxe4 {[%clk 0:01:29]} 12. Qd4 {[%clk 0:01:41]}  f6 {[%clk 0:00:25]} 13. f3 {[%clk 0:01:39]}  d5 {[%clk 0:00:23]} 14. Qxd5+ {[%clk 0:01:37]}  Kh8 {[%clk 0:00:18]} 15. Qxe4 {[%clk 0:01:36]}  Qg5 {[%clk 0:00:16]} 16. Bd3 {[%clk 0:01:34]}  Qh6 {[%clk 0:00:16]} 17. Kb1 {[%clk 0:01:31]}  c6 {[%clk 0:00:13]} 18. Rdd1 {[%clk 0:01:30]}  Bd7 {[%clk 0:00:12]} 19. Bd2 {[%clk 0:01:29]}  Qh5 {[%clk 0:00:05]} 20. g4 {[%clk 0:01:29]} 1-0


[Site "https://www.chess.com"]

[Event "Titled Tuesday Blitz July 18 Late 2023"]
[White "Karacsonyi, Gellert"]
[Black "Pinero Rodriguez, Carlos Jose"]
[WhiteFideId "764620"]
[BlackFideId "3901726"]
[WhiteElo "2817"]
[BlackElo "2591"]
[Result "1/2-1/2"]
[Round "5"]
[TimeControl "180+2"]
[Date "2023.07.18"]
[WhiteClock "0:00:03"]
[BlackClock "0:00:06"]
[Board "31"]

1. e4 {[%clk 0:03:00]}  c5 {[%clk 0:02:59]} 2. Nf3 {[%clk 0:03:00]}  e6 {[%clk 0:02:59]} 3. d4 {[%clk 0:03:00]}  cxd4 {[%clk 0:03:00]} 4. Nxd4 {[%clk 0:03:01]}  a6 {[%clk 0:03:01]} 5. c4 {[%clk 0:02:58]}  Qc7 {[%clk 0:03:01]} 6. Nc3 {[%clk 0:02:58]}  Nf6 {[%clk 0:03:01]} 7. Be2 {[%clk 0:02:55]}  Be7 {[%clk 0:03:00]} 8. O-O {[%clk 0:02:54]}  d6 {[%clk 0:03:00]} 9. f4 {[%clk 0:02:52]}  Nc6 {[%clk 0:03:00]} 10. Nxc6 {[%clk 0:02:49]}  bxc6 {[%clk 0:03:00]} 11. b3 {[%clk 0:02:43]}  e5 {[%clk 0:03:00]} 12. f5 {[%clk 0:02:40]}  h6 {[%clk 0:03:00]} 13. Kh1 {[%clk 0:02:39]}  Bb7 {[%clk 0:02:59]} 14. Qd3 {[%clk 0:02:38]}  Rd8 {[%clk 0:02:51]} 15. Ba3 {[%clk 0:02:26]}  d5 {[%clk 0:02:50]} 16. Bxe7 {[%clk 0:02:21]}  Qxe7 {[%clk 0:02:48]} 17. cxd5 {[%clk 0:02:18]}  cxd5 {[%clk 0:02:49]} 18. exd5 {[%clk 0:02:16]}  Nxd5 {[%clk 0:02:49]} 19. Nxd5 {[%clk 0:02:15]}  Rxd5 {[%clk 0:02:48]} 20. Qg3 {[%clk 0:02:12]}  Qg5 {[%clk 0:02:30]} 21. Qxg5 {[%clk 0:02:03]}  hxg5 {[%clk 0:02:30]} 22. Bf3 {[%clk 0:02:04]}  Rd7 {[%clk 0:02:28]} 23. Bxb7 {[%clk 0:02:04]}  Rxb7 {[%clk 0:02:28]} 24. f6 {[%clk 0:02:05]}  g6 {[%clk 0:02:10]} 25. Rfe1 {[%clk 0:02:01]}  Rb5 {[%clk 0:02:10]} 26. a4 {[%clk 0:01:52]}  Rd5 {[%clk 0:02:09]} 27. Rad1 {[%clk 0:01:46]}  Rxd1 {[%clk 0:02:09]} 28. Rxd1 {[%clk 0:01:47]}  O-O {[%clk 0:02:09]} 29. Kg1 {[%clk 0:01:45]}  Rb8 {[%clk 0:02:08]} 30. Rd6 {[%clk 0:01:37]}  Rxb3 {[%clk 0:01:54]} 31. Rxa6 {[%clk 0:01:36]}  Rb2 {[%clk 0:01:53]} 32. Ra8+ {[%clk 0:01:35]}  Kh7 {[%clk 0:01:52]} 33. Rf8 {[%clk 0:01:32]}  Rb7 {[%clk 0:01:45]} 34. Re8 {[%clk 0:01:04]}  Rb1+ {[%clk 0:01:32]} 35. Kf2 {[%clk 0:01:04]}  Rb4 {[%clk 0:01:32]} 36. a5 {[%clk 0:01:00]}  Rf4+ {[%clk 0:01:30]} 37. Ke3 {[%clk 0:00:57]}  Rxf6 {[%clk 0:00:43]} 38. Rxe5 {[%clk 0:00:57]}  Ra6 {[%clk 0:00:40]} 39. Kd4 {[%clk 0:00:56]}  f5 {[%clk 0:00:37]} 40. Kc4 {[%clk 0:00:56]}  Rc6+ {[%clk 0:00:25]} 41. Rc5 {[%clk 0:00:53]}  Re6 {[%clk 0:00:22]} 42. Kb5 {[%clk 0:00:29]}  Re2 {[%clk 0:00:21]} 43. a6 {[%clk 0:00:29]}  Rxg2 {[%clk 0:00:19]} 44. a7 {[%clk 0:00:29]}  Ra2 {[%clk 0:00:18]} 45. Kb6 {[%clk 0:00:29]}  Rxa7 {[%clk 0:00:15]} 46. Kxa7 {[%clk 0:00:30]}  g4 {[%clk 0:00:14]} 47. Kb6 {[%clk 0:00:29]}  Kh6 {[%clk 0:00:14]} 48. Rc3 {[%clk 0:00:27]}  Kg5 {[%clk 0:00:14]} 49. Kc5 {[%clk 0:00:27]}  f4 {[%clk 0:00:13]} 50. Kd4 {[%clk 0:00:27]}  Kh4 {[%clk 0:00:13]} 51. Ke4 {[%clk 0:00:24]}  g5 {[%clk 0:00:14]} 52. Kf5 {[%clk 0:00:13]}  g3 {[%clk 0:00:13]} 53. hxg3+ {[%clk 0:00:09]}  fxg3 {[%clk 0:00:14]} 54. Ke4 {[%clk 0:00:07]}  Kh3 {[%clk 0:00:06]} 55. Kf3 {[%clk 0:00:03]}  g2 {[%clk 0:00:06]} 56. Rc1 {[%clk 0:00:03]}  Kh2 {[%clk 0:00:05]} 57. Kf2 {[%clk 0:00:02]}  g4 {[%clk 0:00:06]} 58. Ke2 {[%clk 0:00:02]}  g3 {[%clk 0:00:05]} 59. Kf3 {[%clk 0:00:02]}  g1=Q {[%clk 0:00:05]} 60. Rxg1 {[%clk 0:00:02]}  Kxg1 {[%clk 0:00:06]} 61. Kxg3 {[%clk 0:00:03]} 1/2-1/2


[Site "https://www.chess.com"]

[Event "Titled Tuesday Blitz July 18 Late 2023"]
[White "Skvortsov, Andrei"]
[Black "Krishnan, Varun"]
[WhiteFideId "24108600"]
[BlackFideId "5054508"]
[WhiteElo "2805"]
[BlackElo "2586"]
[Result "1/2-1/2"]
[Round "5"]
[TimeControl "180+2"]
[Date "2023.07.18"]
[WhiteClock "0:00:14"]
[BlackClock "0:00:03"]
[Board "32"]

1. e4 {[%clk 0:03:00]}  a6 {[%clk 0:02:57]} 2. d4 {[%clk 0:02:59]}  e6 {[%clk 0:02:56]} 3. a3 {[%clk 0:02:57]}  d5 {[%clk 0:02:54]} 4. Nc3 {[%clk 0:02:57]}  Nf6 {[%clk 0:02:52]} 5. Bg5 {[%clk 0:02:55]}  Be7 {[%clk 0:02:48]} 6. e5 {[%clk 0:02:54]}  Nfd7 {[%clk 0:02:48]} 7. Bxe7 {[%clk 0:02:54]}  Qxe7 {[%clk 0:02:48]} 8. f4 {[%clk 0:02:55]}  c5 {[%clk 0:02:47]} 9. Nf3 {[%clk 0:02:55]}  Nc6 {[%clk 0:02:47]} 10. Qd2 {[%clk 0:02:53]}  b5 {[%clk 0:02:41]} 11. h4 {[%clk 0:02:53]}  Bb7 {[%clk 0:02:32]} 12. h5 {[%clk 0:02:53]}  h6 {[%clk 0:02:29]} 13. Nd1 {[%clk 0:02:53]}  Nb6 {[%clk 0:02:18]} 14. Ne3 {[%clk 0:02:52]}  Nc4 {[%clk 0:02:14]} 15. Qc3 {[%clk 0:02:39]}  Rc8 {[%clk 0:01:59]} 16. Nxc4 {[%clk 0:02:34]}  dxc4 {[%clk 0:01:58]} 17. Rd1 {[%clk 0:02:33]}  cxd4 {[%clk 0:01:53]} 18. Nxd4 {[%clk 0:02:28]}  Nxd4 {[%clk 0:01:52]} 19. Qxd4 {[%clk 0:02:27]}  O-O {[%clk 0:01:48]} 20. Qd6 {[%clk 0:02:26]}  Qxd6 {[%clk 0:01:40]} 21. Rxd6 {[%clk 0:02:26]}  Rfd8 {[%clk 0:01:39]} 22. Rxd8+ {[%clk 0:02:25]}  Rxd8 {[%clk 0:01:39]} 23. c3 {[%clk 0:02:23]}  f6 {[%clk 0:01:21]} 24. exf6 {[%clk 0:02:21]}  gxf6 {[%clk 0:01:21]} 25. Rh3 {[%clk 0:02:21]}  Kf7 {[%clk 0:01:18]} 26. g4 {[%clk 0:02:07]}  e5 {[%clk 0:01:11]} 27. fxe5 {[%clk 0:02:03]}  fxe5 {[%clk 0:01:12]} 28. Be2 {[%clk 0:02:02]}  Kf6 {[%clk 0:01:10]} 29. Re3 {[%clk 0:02:01]}  e4 {[%clk 0:01:06]} 30. Rg3 {[%clk 0:01:59]}  Kg5 {[%clk 0:01:05]} 31. Rg1 {[%clk 0:02:00]}  Kf4 {[%clk 0:00:41]} 32. Bd1 {[%clk 0:01:40]}  Bc8 {[%clk 0:00:30]} 33. Rf1+ {[%clk 0:01:36]}  Ke3 {[%clk 0:00:27]} 34. Rf6 {[%clk 0:01:18]}  Rd2 {[%clk 0:00:24]} 35. Rxh6 {[%clk 0:01:11]}  Rg2 {[%clk 0:00:23]} 36. Rf6 {[%clk 0:01:11]}  Bxg4 {[%clk 0:00:20]} 37. h6 {[%clk 0:01:03]}  Bxd1 {[%clk 0:00:17]} 38. Kxd1 {[%clk 0:01:01]}  Rh2 {[%clk 0:00:12]} 39. Kc1 {[%clk 0:00:57]}  Kd3 {[%clk 0:00:08]} 40. Rd6+ {[%clk 0:00:56]}  Ke2 {[%clk 0:00:09]} 41. Rxa6 {[%clk 0:00:57]}  e3 {[%clk 0:00:09]} 42. Rf6 {[%clk 0:00:56]}  Kd3 {[%clk 0:00:09]} 43. Rd6+ {[%clk 0:00:57]}  Ke4 {[%clk 0:00:08]} 44. Re6+ {[%clk 0:00:55]}  Kd3 {[%clk 0:00:08]} 45. Rd6+ {[%clk 0:00:50]}  Ke4 {[%clk 0:00:09]} 46. Re6+ {[%clk 0:00:37]}  Kf4 {[%clk 0:00:09]} 47. Kd1 {[%clk 0:00:24]}  Rxb2 {[%clk 0:00:05]} 48. h7 {[%clk 0:00:24]}  Rh2 {[%clk 0:00:05]} 49. Re7 {[%clk 0:00:25]}  Kf3 {[%clk 0:00:05]} 50. Rf7+ {[%clk 0:00:24]}  Ke4 {[%clk 0:00:05]} 51. Rd7 {[%clk 0:00:24]}  Rh1+ {[%clk 0:00:04]} 52. Ke2 {[%clk 0:00:23]}  Rh2+ {[%clk 0:00:05]} 53. Kf1 {[%clk 0:00:24]}  Kf3 {[%clk 0:00:05]} 54. Rf7+ {[%clk 0:00:23]}  Ke4 {[%clk 0:00:05]} 55. Kg1 {[%clk 0:00:23]}  Rh6 {[%clk 0:00:05]} 56. Rd7 {[%clk 0:00:23]}  Rg6+ {[%clk 0:00:05]} 57. Kf1 {[%clk 0:00:22]}  Rh6 {[%clk 0:00:05]} 58. Kg2 {[%clk 0:00:19]}  Rg6+ {[%clk 0:00:04]} 59. Kf1 {[%clk 0:00:20]}  Rf6+ {[%clk 0:00:04]} 60. Ke1 {[%clk 0:00:20]}  Rh6 {[%clk 0:00:04]} 61. Ke2 {[%clk 0:00:15]}  Rh2+ {[%clk 0:00:04]} 62. Kd1 {[%clk 0:00:15]}  e2+ {[%clk 0:00:04]} 63. Ke1 {[%clk 0:00:15]}  Ke3 {[%clk 0:00:04]} 64. Re7+ {[%clk 0:00:14]}  Kd3 {[%clk 0:00:04]} 65. Rd7+ {[%clk 0:00:11]}  Kxc3 {[%clk 0:00:04]} 66. Rg7 {[%clk 0:00:11]}  Kb2 {[%clk 0:00:03]} 67. Rb7 {[%clk 0:00:07]}  Kxa3 {[%clk 0:00:02]} 68. Rxb5 {[%clk 0:00:08]}  Rxh7 {[%clk 0:00:01]} 69. Kxe2 {[%clk 0:00:07]}  Rc7 {[%clk 0:00:02]} 70. Kd2 {[%clk 0:00:07]}  c3+ {[%clk 0:00:02]} 71. Kc2 {[%clk 0:00:08]}  Ka4 {[%clk 0:00:03]} 72. Rb8 {[%clk 0:00:08]}  Ka5 {[%clk 0:00:03]} 73. Rb1 {[%clk 0:00:09]}  Ka6 {[%clk 0:00:02]} 74. Rb4 {[%clk 0:00:10]}  Ka7 {[%clk 0:00:03]} 75. Rg4 {[%clk 0:00:10]}  Kb7 {[%clk 0:00:03]} 76. Rg6 {[%clk 0:00:11]}  Kc8 {[%clk 0:00:03]} 77. Rg8+ {[%clk 0:00:11]}  Kd7 {[%clk 0:00:03]} 78. Rg4 {[%clk 0:00:12]}  Kd6 {[%clk 0:00:04]} 79. Rg3 {[%clk 0:00:12]}  Ke6 {[%clk 0:00:04]} 80. Rxc3 {[%clk 0:00:13]}  Rxc3+ {[%clk 0:00:03]} 81. Kxc3 {[%clk 0:00:14]} 1/2-1/2


[Site "https://www.chess.com"]

[Event "Titled Tuesday Blitz July 18 Late 2023"]
[White "Bartel, Michal"]
[Black "Tristan, Leonardo"]
[WhiteFideId "1119257"]
[BlackFideId "113816"]
[WhiteElo "2578"]
[BlackElo "2790"]
[Result "0-1"]
[Round "5"]
[TimeControl "180+2"]
[Date "2023.07.18"]
[WhiteClock "0:00:30"]
[BlackClock "0:00:15"]
[Board "33"]

1. e4 {[%clk 0:02:54]}  d5 {[%clk 0:03:00]} 2. exd5 {[%clk 0:02:53]}  Qxd5 {[%clk 0:03:01]} 3. Nc3 {[%clk 0:02:53]}  Qa5 {[%clk 0:03:01]} 4. g3 {[%clk 0:02:53]}  e5 {[%clk 0:03:00]} 5. Bg2 {[%clk 0:02:53]}  Nf6 {[%clk 0:03:01]} 6. Nge2 {[%clk 0:02:53]}  Bd6 {[%clk 0:02:59]} 7. d3 {[%clk 0:02:52]}  c6 {[%clk 0:02:58]} 8. O-O {[%clk 0:02:52]}  O-O {[%clk 0:02:57]} 9. Rb1 {[%clk 0:02:52]}  h6 {[%clk 0:02:53]} 10. h3 {[%clk 0:02:51]}  Re8 {[%clk 0:02:51]} 11. Bd2 {[%clk 0:02:50]}  Qc7 {[%clk 0:02:50]} 12. b4 {[%clk 0:02:50]}  Be6 {[%clk 0:02:47]} 13. a4 {[%clk 0:02:46]}  a6 {[%clk 0:02:33]} 14. b5 {[%clk 0:02:44]}  axb5 {[%clk 0:02:33]} 15. axb5 {[%clk 0:02:45]}  Nbd7 {[%clk 0:02:06]} 16. Re1 {[%clk 0:02:28]}  Bf8 {[%clk 0:01:57]} 17. Qc1 {[%clk 0:02:10]}  Nd5 {[%clk 0:01:53]} 18. g4 {[%clk 0:01:44]}  Ba3 {[%clk 0:01:41]} 19. Qd1 {[%clk 0:01:44]}  N7f6 {[%clk 0:01:32]} 20. bxc6 {[%clk 0:01:41]}  bxc6 {[%clk 0:01:32]} 21. Ng3 {[%clk 0:01:41]}  Nf4 {[%clk 0:01:25]} 22. Nge4 {[%clk 0:01:31]}  Nxe4 {[%clk 0:01:21]} 23. Nxe4 {[%clk 0:01:25]}  Nxg2 {[%clk 0:01:21]} 24. Kxg2 {[%clk 0:01:26]}  Bf8 {[%clk 0:00:59]} 25. Kg1 {[%clk 0:01:24]}  Qd7 {[%clk 0:00:51]} 26. Bxh6 {[%clk 0:01:21]}  f5 {[%clk 0:00:50]} 27. gxf5 {[%clk 0:01:19]}  Bxf5 {[%clk 0:00:51]} 28. Bg5 {[%clk 0:01:13]}  Bxh3 {[%clk 0:00:51]} 29. Qf3 {[%clk 0:01:11]}  Ra2 {[%clk 0:00:40]} 30. Rbc1 {[%clk 0:01:01]}  Be6 {[%clk 0:00:35]} 31. Qg3 {[%clk 0:01:00]}  Bd5 {[%clk 0:00:27]} 32. Re2 {[%clk 0:00:45]}  Qf5 {[%clk 0:00:25]} 33. Rce1 {[%clk 0:00:37]}  Re6 {[%clk 0:00:24]} 34. Re3 {[%clk 0:00:25]}  Rg6 {[%clk 0:00:20]} 35. Rf3 {[%clk 0:00:25]}  Qe6 {[%clk 0:00:12]} 36. c4 {[%clk 0:00:20]}  Bxe4 {[%clk 0:00:12]} 37. Rxe4 {[%clk 0:00:21]}  Be7 {[%clk 0:00:09]} 38. Rxe5 {[%clk 0:00:21]}  Qxe5 {[%clk 0:00:09]} 39. Qxe5 {[%clk 0:00:21]}  Rxg5+ {[%clk 0:00:10]} 40. Qxg5 {[%clk 0:00:21]}  Bxg5 {[%clk 0:00:11]} 41. Kh2 {[%clk 0:00:22]}  Bf6 {[%clk 0:00:10]} 42. Kg3 {[%clk 0:00:22]}  c5 {[%clk 0:00:11]} 43. Kg4 {[%clk 0:00:22]}  Bd4 {[%clk 0:00:11]} 44. Kg3 {[%clk 0:00:22]}  g6 {[%clk 0:00:11]} 45. Kg2 {[%clk 0:00:21]}  Kg7 {[%clk 0:00:11]} 46. Kg3 {[%clk 0:00:22]}  g5 {[%clk 0:00:10]} 47. Kg4 {[%clk 0:00:21]}  Rxf2 {[%clk 0:00:09]} 48. Rxf2 {[%clk 0:00:21]}  Bxf2 {[%clk 0:00:10]} 49. Kxg5 {[%clk 0:00:22]}  Bd4 {[%clk 0:00:10]} 50. Kf5 {[%clk 0:00:23]}  Kh6 {[%clk 0:00:10]} 51. Ke4 {[%clk 0:00:17]}  Kg5 {[%clk 0:00:10]} 52. Kf3 {[%clk 0:00:18]}  Kf5 {[%clk 0:00:11]} 53. Kg3 {[%clk 0:00:18]}  Ke5 {[%clk 0:00:09]} 54. Kf3 {[%clk 0:00:19]}  Bg1 {[%clk 0:00:08]} 55. Ke2 {[%clk 0:00:20]}  Kd4 {[%clk 0:00:09]} 56. Kf3 {[%clk 0:00:21]}  Kxd3 {[%clk 0:00:09]} 57. Kg2 {[%clk 0:00:21]}  Kxc4 {[%clk 0:00:09]} 58. Kxg1 {[%clk 0:00:22]}  Kd3 {[%clk 0:00:10]} 59. Kf1 {[%clk 0:00:23]}  Kd2 {[%clk 0:00:10]} 60. Kf2 {[%clk 0:00:23]}  c4 {[%clk 0:00:10]} 61. Kg2 {[%clk 0:00:24]}  c3 {[%clk 0:00:11]} 62. Kh2 {[%clk 0:00:25]}  c2 {[%clk 0:00:12]} 63. Kg2 {[%clk 0:00:26]}  c1=Q {[%clk 0:00:12]} 64. Kh2 {[%clk 0:00:27]}  Qf1 {[%clk 0:00:12]} 65. Kg3 {[%clk 0:00:27]}  Qf5 {[%clk 0:00:13]} 66. Kh2 {[%clk 0:00:28]}  Qg4 {[%clk 0:00:13]} 67. Kh1 {[%clk 0:00:29]}  Ke2 {[%clk 0:00:13]} 68. Kh2 {[%clk 0:00:30]}  Kf2 {[%clk 0:00:14]} 69. Kh1 {[%clk 0:00:30]}  Qh4# {[%clk 0:00:15]} 0-1


[Site "https://www.chess.com"]